fUSD/lending_fUSD_20250716
["ID","MTS","AMOUNT","RATE_DAILY","PERIOD"]
[372477615,1752658298784,-691.15,0.00022191,2]
[372477616,1752658298793,-832.14,0.00022191,2]
[372477617,1752658298803,-490.37,0.00022191,2]
[372477618,1752658298813,-460.0,0.00022191,2]
[372477619,1752658298823,-460.0,0.00022191,2]
[372477620,1752658298833,-460.0,0.00022191,2]
[372477621,1752658298843,-2276.57,0.00022191,2]
[372477622,1752658298853,-460.0,0.00022191,2]
[372477623,1752658298862,-460.0,0.00022191,2]
[372477624,1752658298872,-460.0,0.00022191,2]
[372477625,1752658298882,-465.59316935,0.00022191,2]
[372477626,1752658298891,-1069.29,0.00022191,2]
[372477627,1752658298901,-2458.42,0.00022191,2]
[372477628,1752658298912,-1760.37,0.00022191,2]
[372477629,1752658298922,-460.0,0.00022191,2]
[372477630,1752658298931,-635.38,0.00022191,2]
[372477631,1752658298941,-460.0,0.00022191,2]
[372477632,1752658298951,-473.68,0.00022191,2]
[372477633,1752658298961,-460.0,0.00022191,2]
[372477634,1752658298971,-460.0,0.00022191,2]
[372477635,1752658298981,-460.0,0.00022191,2]
[372477636,1752658298991,-649.34,0.00022191,2]
[372477637,1752658299001,-1013.09,0.00022191,2]
[372477638,1752658299010,-467.15,0.00022191,2]
[372477639,1752658299020,-463.01584958,0.00022191,2]
[372477640,1752658299030,-462.56377332,0.00022191,2]
[372477641,1752658299039,-1959.18,0.00022191,2]
[372477642,1752658299049,-460.0,0.00022191,2]
[372477643,1752658299059,-737.04,0.00022191,2]
[372477644,1752658299068,-460.0,0.00022191,2]
[372477645,1752658299077,-460.0,0.00022191,2]
[372477646,1752658299087,-460.0,0.00022191,2]
[372477647,1752658299096,-2111.62,0.00022191,2]
[372477648,1752658299106,-460.0,0.00022191,2]
[372477649,1752658299115,-460.0,0.00022191,2]
[372477650,1752658299125,-460.0,0.00022191,2]
[372477651,1752658299134,-1275.35,0.00022191,2]
[372477652,1752658299144,-1160.13,0.00022191,2]
[372477653,1752658299154,-803.71,0.00022191,2]
[372477654,1752658299164,-460.0,0.00022191,2]
[372477655,1752658299174,-561.85,0.00022191,2]
[372477656,1752658299185,-507.69,0.00022191,2]
[372477657,1752658299195,-490.0,0.00022191,2]
[372477658,1752658299204,-460.0,0.00022191,2]
[372477659,1752658299213,-1473.13,0.00022191,2]
[372477660,1752658299223,-1118.98,0.00022191,2]
[372477661,1752658299233,-460.0,0.00022191,2]
[372477662,1752658299243,-205.75380712,0.00022191,2]
[372477663,1752658299252,-460.0,0.00022191,2]
[372477664,1752658299263,-460.0,0.00022191,2]
[372477665,1752658299273,-827.8,0.00022191,2]
[372477666,1752658299283,-956.69,0.00022191,2]
[372477667,1752658299293,-460.0,0.00022191,2]
[372477668,1752658299303,-460.0,0.00022191,2]
[372477669,1752658299313,-550.41,0.00022191,2]
[372477670,1752658299323,-2926.69,0.00022191,2]
[372477671,1752658299332,-1640.39,0.00022191,2]
[372477672,1752658299341,-460.0,0.00022191,2]
[372477673,1752658299351,-460.0,0.00022191,2]
[372477674,1752658299361,-1262.36,0.00022191,2]
[372477675,1752658299372,-504.37,0.00022191,2]
[372477676,1752658299383,-545.97,0.00022191,2]
[372477677,1752658299393,-592.66,0.00022191,2]
[372477678,1752658299403,-1487.96,0.00022191,2]
[372477679,1752658299412,-1047.5,0.00022191,2]
[372477680,1752658299423,-3088.23,0.00022191,2]
[372477681,1752658299434,-3599.53,0.00022191,2]
[372477682,1752658299444,-2883.53,0.00022191,2]
[372477683,1752658299454,-509.27,0.00022191,2]
[372477684,1752658299465,-685.04,0.00022191,2]
[372477685,1752658299476,-460.0,0.00022191,2]
[372477686,1752658299485,-460.0,0.00022191,2]
[372477687,1752658299496,-1146.18,0.00022191,2]
[372477688,1752658299506,-1096.49,0.00022191,2]
[372477689,1752658299515,-460.0,0.00022191,2]
[372477690,1752658299525,-2648.19,0.00022191,2]
[372477691,1752658299534,-902.56,0.00022191,2]
[372477692,1752658299543,-773.54,0.00022191,2]
[372477693,1752658299553,-461.81591101,0.00022191,2]
[372477694,1752658299562,-1738.58,0.00022191,2]
[372477695,1752658299571,-460.0,0.00022191,2]
[372477696,1752658299581,-460.0,0.00022191,2]
[372477697,1752658299590,-460.0,0.00022191,2]
[372477698,1752658299600,-2954.84,0.00022191,2]
[372477699,1752658299610,-2453.81,0.00022191,2]
[372477700,1752658299619,-1324.1,0.00022191,2]
[372477701,1752658299629,-460.0,0.00022191,2]
[372477702,1752658299639,-1251.59,0.00022191,2]
[372477703,1752658299649,-1446.3,0.00022191,2]
[372477704,1752658299661,-463.50336167,0.00022191,2]
[372477705,1752658299670,-460.0,0.00022191,2]
[372477706,1752658299680,-460.0,0.00022191,2]
[372477707,1752658299689,-756.05,0.00022191,2]
[372477708,1752658299699,-1290.55,0.00022191,2]
[372477709,1752658299709,-846.69,0.00022191,2]
[372477710,1752658299718,-875.13,0.00022191,2]
[372477711,1752658299729,-1002.61,0.00022191,2]
[372477712,1752658299741,-460.0,0.00022191,2]
[372477713,1752658299751,-460.0,0.00022191,2]
[372477714,1752658299761,-2856.77,0.00022191,2]
[372477715,1752658299772,-460.0,0.00022191,2]
[372477716,1752658299783,-569.91,0.00022191,2]
[372477717,1752658299797,-460.0,0.00022191,2]
[372477718,1752658299809,-575.98241143,0.00022191,2]
[372477719,1752658299820,-1520.45,0.00022191,2]
[372477720,1752658299830,-1334.81,0.00022191,2]
[372477721,1752658299840,-547.41,0.00022191,2]
[372477722,1752658299850,-559.86,0.00022191,2]
[372477723,1752658299859,-1178.74,0.00022191,2]
[372477724,1752658299869,-1370.19,0.00022191,2]
[372477725,1752658299878,-460.0,0.00022191,2]
[372477726,1752658299888,-460.0,0.00022191,2]
[372477727,1752658300001,-460.0,0.00022191,2]
[372477728,1752658300011,-2045.38,0.00022191,2]
[372477729,1752658300020,-979.84,0.00022191,2]
[372477730,1752658300030,-2958.36,0.00022191,2]
[372477731,1752658300040,-673.85,0.00022191,2]
[372477732,1752658300049,-460.0,0.00022191,2]
[372477733,1752658300062,-460.0,0.00022191,2]
[372477734,1752658300072,-2908.18,0.00022191,2]
[372477735,1752658300081,-460.0,0.00022191,2]
[372477736,1752658300091,-1642.92,0.00022191,2]
[372477737,1752658300100,-2736.56,0.00022191,2]
[372477738,1752658300110,-2515.76,0.00022191,2]
[372477739,1752658300119,-460.0,0.00022191,2]
[372477740,1752658300129,-462.03131094,0.00022191,2]
[372477741,1752658300140,-460.0,0.00022191,2]
[372477742,1752658300153,-460.0,0.00022191,2]
[372477743,1752658300163,-1469.23713627,0.00022191,2]
[372477744,1752658300850,-83.60286373,0.00022191,2]
[372477745,1752658300861,-460.0,0.00022191,2]
[372477746,1752658300871,-837.86,0.00022191,2]
[372477747,1752658300880,-641.86,0.00022191,2]
[372477748,1752658300890,-460.0,0.00022191,2]
[372477749,1752658300899,-1459.96,0.00022191,2]
[372477750,1752658300909,-574.34,0.00022191,2]
[372477751,1752658300919,-544.22,0.00022191,2]
[372477752,1752658300928,-378.60382193,0.00022191,2]
[372477753,1752658301056,-81.39617807,0.00022191,2]
[372477754,1752658301066,-834.4,0.00022191,2]
[372477755,1752658301075,-460.0,0.00022191,2]
[372477756,1752658301085,-460.0,0.00022191,2]
[372477757,1752658301094,-1143.29,0.00022191,2]
[372477758,1752658301103,-460.0,0.00022191,2]
[372477759,1752658301114,-460.0,0.00022191,2]
[372477760,1752658301124,-522.33,0.00022191,2]
[372477761,1752658301133,-1408.24,0.00022191,2]
[372477762,1752658301142,-718.58308938,0.00022191,2]
[372477763,1752658302150,-190.0,0.00020453,7]
[372477764,1752658302160,-153.96755628,0.00021717,2]
[372477765,1752658302169,-521.49,0.00021917,2]
[372477766,1752658302178,-460.0,0.00021917,2]
[372477767,1752658302188,-460.0,0.00021917,2]
[372477768,1752658302197,-806.272,0.00021995,2]
[372477769,1752658302207,-521.49,0.00022054,2]
[372477770,1752658302216,-341.12,0.00022054,2]
[372477771,1752658302226,-133.30691062,0.00022191,2]
[372477772,1752658302236,-648.86,0.00022191,2]
[372477773,1752658302245,-483.33847202,0.00022191,2]
[372477774,1752658302255,-583.59,0.00022191,2]
[372477775,1752658302264,-460.0,0.00022191,2]
[372477776,1752658302274,-3399.89,0.00022191,2]
[372477777,1752658302282,-460.0,0.00022191,2]
[372477778,1752658302292,-460.0,0.00022191,2]
[372477779,1752658302301,-287.47897103,0.00022191,2]
[372477780,1752658318289,-267.75687584,0.00021917,2]
[372477781,1752658318307,-529.73,0.00021917,2]
[372477782,1752658318319,-460.0,0.00021917,2]
[372477783,1752658318328,-529.73,0.00022054,2]
[372477784,1752658318338,-188.68102897,0.00022191,2]
[372477785,1752658318347,-2061.12,0.00022191,2]
[372477786,1752658318356,-766.55,0.00022191,2]
[372477787,1752658318366,-1111.17,0.00022191,2]
[372477788,1752658318375,-573.18,0.00022191,2]
[372477789,1752658318384,-576.12,0.00022191,2]
[372477790,1752658318393,-671.75,0.00022191,2]
[372477791,1752658318403,-589.15,0.00022191,2]
[372477792,1752658318412,-556.85,0.00022191,2]
[372477793,1752658318421,-460.0,0.00022191,2]
[372477794,1752658318432,-1365.14,0.00022191,2]
[372477795,1752658318441,-513.47930855,0.00022191,2]
[372477796,1752658318450,-2344.33,0.00022191,2]
[372477797,1752658318460,-4044.73,0.00022191,2]
[372477798,1752658318469,-1963.69,0.00022191,2]
[372477799,1752658318478,-460.0,0.00022191,2]
[372477800,1752658318487,-1936.87,0.00022191,2]
[372477801,1752658318497,-460.0,0.00022191,2]
[372477802,1752658318506,-460.0,0.00022191,2]
[372477803,1752658318515,-460.0,0.00022191,2]
[372477804,1752658318525,-3391.16,0.00022191,2]
[372477805,1752658318534,-2946.15,0.00022191,2]
[372477806,1752658318544,-2389.0,0.00022191,2]
[372477807,1752658318553,-460.0,0.00022191,2]
[372477808,1752658318563,-460.0,0.00022191,2]
[372477809,1752658318572,-716.54,0.00022191,2]
[372477810,1752658318582,-460.0,0.00022191,2]
[372477811,1752658318591,-460.0,0.00022191,2]
[372477812,1752658318601,-2553.6,0.00022191,2]
[372477813,1752658318611,-3263.55,0.00022191,2]
[372477814,1752658318620,-460.0,0.00022191,2]
[372477815,1752658318629,-166.62493627,0.00022191,2]
[372477816,1752658318640,-1299.84,0.00022191,2]
[372477817,1752658318650,-462.64323546,0.00022191,2]
[372477818,1752658318659,-2879.18,0.00022191,2]
[372477819,1752658318668,-670.4,0.00022191,2]
[372477820,1752658318678,-1441.77,0.00022191,2]
[372477821,1752658318688,-460.0,0.00022191,2]
[372477822,1752658318697,-460.0,0.00022191,2]
[372477823,1752658318706,-1751.97,0.00022191,2]
[372477824,1752658318715,-460.0,0.00022191,2]
[372477825,1752658318724,-463.21,0.00022191,2]
[372477826,1752658318734,-460.0,0.00022191,2]
[372477827,1752658318744,-942.15,0.00022191,2]
[372477828,1752658318753,-460.0,0.00022191,2]
[372477829,1752658318763,-460.0,0.00022191,2]
[372477830,1752658318772,-460.0,0.00022191,2]
[372477831,1752658318782,-460.0,0.00022191,2]
[372477832,1752658318791,-558.47,0.00022191,2]
[372477833,1752658318800,-459.9517779,0.00022191,2]
[372477834,1752658318810,-515.37488016,0.00022191,2]
[372477835,1752658318821,-1028.25,0.00022191,2]
[372477836,1752658318831,-460.0,0.00022191,2]
[372477837,1752658318840,-1005.75,0.00022191,2]
[372477838,1752658318851,-460.0,0.00022191,2]
[372477839,1752658318861,-856.94,0.00022191,2]
[372477840,1752658318870,-460.0,0.00022191,2]
[372477841,1752658318879,-464.58,0.00022191,2]
[372477842,1752658318889,-460.0,0.00022191,2]
[372477843,1752658318898,-460.0,0.00022191,2]
[372477844,1752658318908,-1702.52,0.00022191,2]
[372477845,1752658318926,-1372.77,0.00022191,2]
[372477846,1752658318939,-498.23,0.00022191,2]
[372477847,1752658318948,-441.80905337,0.00022191,2]
[372477848,1752658318957,-1438.38,0.00022191,2]
[372477849,1752658318967,-460.0,0.00022191,2]
[372477850,1752658318977,-460.0,0.00022191,2]
[372477851,1752658318986,-3301.8,0.00022191,2]
[372477852,1752658318996,-3721.71,0.00022191,2]
[372477853,1752658319005,-460.0,0.00022191,2]
[372477854,1752658319015,-968.64,0.00022191,2]
[372477855,1752658319025,-888.88,0.00022191,2]
[372477856,1752658319035,-682.41,0.00022191,2]
[372477857,1752658319044,-612.62,0.00022191,2]
[372477858,1752658319054,-592.13934859,0.00022191,2]
[372477859,1752658319063,-508.43,0.00022191,2]
[372477860,1752658319073,-1151.05,0.00022191,2]
[372477861,1752658319082,-1265.63,0.00022191,2]
[372477862,1752658319092,-460.0,0.00022191,2]
[372477863,1752658319102,-760.3,0.00022191,2]
[372477864,1752658319111,-462.26606719,0.00022191,2]
[372477865,1752658319121,-693.74,0.00022191,2]
[372477866,1752658319133,-460.0,0.00022191,2]
[372477867,1752658319142,-1045.83,0.00022191,2]
[372477868,1752658319151,-460.0,0.00022191,2]
[372477869,1752658319160,-503.04338929,0.00022191,2]
[372477870,1752658319170,-918.4,0.00022191,2]
[372477871,1752658319179,-2921.93,0.00022191,2]
[372477872,1752658319188,-546.7,0.00022191,2]
[372477873,1752658319198,-2767.53,0.00022191,2]
[372477874,1752658319207,-460.0,0.00022191,2]
[372477875,1752658319217,-460.0,0.00022191,2]
[372477876,1752658319226,-1496.68,0.00022191,2]
[372477877,1752658319236,-460.0,0.00022191,2]
[372477878,1752658319246,-460.0,0.00022191,2]
[372477879,1752658319256,-2051.41,0.00022191,2]
[372477880,1752658319266,-1305.51,0.00022191,2]
[372477881,1752658319275,-460.0,0.00022191,2]
[372477882,1752658319284,-505.86,0.00022191,2]
[372477883,1752658319294,-460.0,0.00022191,2]
[372477884,1752658319303,-1177.02,0.00022191,2]
[372477885,1752658319313,-980.88,0.00022191,2]
[372477886,1752658319322,-1488.34,0.00022191,2]
[372477887,1752658319332,-465.75,0.00022191,2]
[372477888,1752658319341,-460.0,0.00022191,2]
[372477889,1752658319351,-183.29252206,0.00022191,2]
[372477890,1752658319362,-460.0,0.00022191,2]
[372477891,1752658319371,-460.0,0.00022191,2]
[372477892,1752658319381,-460.0,0.00022191,2]
[372477893,1752658319391,-1025.95,0.00022191,2]
[372477894,1752658319401,-1420.53,0.00022191,2]
[372477895,1752658319411,-2123.58,0.00022191,2]
[372477896,1752658319420,-871.64,0.00022191,2]
[372477897,1752658319430,-460.0,0.00022191,2]
[372477898,1752658319440,-460.0,0.00022191,2]
[372477899,1752658319451,-567.53,0.00022191,2]
[372477900,1752658319462,-460.0,0.00022191,2]
[372477901,1752658319471,-788.26,0.00022191,2]
[372477902,1752658319481,-1132.56,0.00022191,2]
[372477903,1752658319490,-2121.25,0.00022191,2]
[372477904,1752658319499,-464.73,0.00022191,2]
[372477905,1752658319508,-928.94,0.00022191,2]
[372477906,1752658319518,-460.0,0.00022191,2]
[372477907,1752658319528,-460.0,0.00022191,2]
[372477908,1752658319538,-1312.94,0.00022191,2]
[372477909,1752658319548,-1499.59,0.00022191,2]
[372477910,1752658319557,-460.0,0.00022191,2]
[372477911,1752658319567,-1223.86757635,0.00022191,2]
[372477912,1752658319634,-462.73242365,0.00022191,2]
[372477913,1752658319643,-29.69312871,0.00022191,2]
[372477914,1752658329607,806.22050547,7.945e-05,2]
[372477915,1752658329630,2195.29343853,7.945e-05,2]
[372477916,1752658362376,150.0,0.0003,120]
[372477917,1752658389094,7597.7145124,0.00030137,120]
[372477919,1752658539783,1295.07269718,0.00030137,120]
[372477920,1752658553480,2000.0,0.00030136,120]
[372477921,1752658562705,2000.0,0.00030136,120]
[372477923,1752658573384,2000.0,0.00030136,120]
[372477924,1752658584234,2000.0,0.00030136,120]
[372477925,1752658594258,2000.0,0.00030136,120]
[372477928,1752658962750,3000.0,0.00030137,120]
[372477929,1752659073731,-1714.38931208,0.00030137,120]
[372477930,1752659073760,-4015.40034289,0.00030137,120]
[372477931,1752659073801,-150.0,0.00030202,120]
[372477932,1752659073836,-150.0,0.00030223,120]
[372477933,1752659073865,-1000.0,0.00030274,120]
[372477934,1752659073895,-150.0,0.00030314,120]
[372477935,1752659073924,-1000.0,0.00030411,120]
[372477936,1752659073953,-1000.0,0.00030411,120]
[372477937,1752659073985,-150.0,0.00030528,120]
[372477938,1752659074015,-1000.0,0.00030548,120]
[372477939,1752659074045,-150.0,0.00030574,120]
[372477940,1752659074075,-1000.0,0.00030684,120]
[372477941,1752659074104,-1000.0,0.00030685,120]
[372477942,1752659074136,-1000.0,0.00030685,120]
[372477943,1752659074169,-14178.31184823,0.00030765,120]
[372477944,1752659074200,-507.07515075,0.00030765,120]
[372477945,1752659074230,-1000.0,0.00030822,120]
[372477946,1752659074262,-150.0,0.00030837,120]
[372477947,1752659074293,-474.64,0.00030853,120]
[372477948,1752659074323,-1000.0,0.00030959,120]
[372477949,1752659074352,-1000.0,0.00030959,120]
[372477950,1752659074381,-7881.1768229,0.00031,120]
[372477951,1752659074409,-2500.57786281,0.00031,120]
[372477952,1752659074437,-210.72748344,0.00031,120]
[372477953,1752659074469,-150.0,0.0003109,120]
[372477954,1752659074497,-1000.0,0.00031096,120]
[372477956,1752659086314,162.74,0.00013699,2]
[372478098,1752659399145,524.0,0.00017012,2]
[372478133,1752659432079,-1000.0,0.00019813,2]
[372478134,1752659432090,-173.62845744,0.00019825,4]
[372478135,1752659432100,-251.48,0.00020033,2]
[372478136,1752659432110,-250.0,0.00020499,2]
[372478137,1752659432122,-190.0,0.00020499,7]
[372478138,1752659432133,-200.0,0.00020629,2]
[372478139,1752659432144,-346.06,0.00020675,2]
[372478140,1752659432154,-1000.0,0.00020794,2]
[372478141,1752659432164,-150.0,0.00020797,2]
[372478142,1752659432174,-268.06,0.00020807,2]
[372478143,1752659432184,-163.72,0.00020811,2]
[372478144,1752659432194,-612.09,0.00020825,2]
[372478145,1752659432203,-151.0,0.000209,2]
[372478146,1752659432214,-207.4,0.000209,2]
[372478147,1752659432224,-1000.0,0.00020991,2]
[372478148,1752659432234,-263.0,0.00020999,2]
[372478149,1752659432244,-150.99,0.00021,2]
[372478150,1752659432253,-653.0,0.00021,2]
[372478151,1752659432262,-580.54542204,0.00021017,2]
[372478152,1752659432272,-179.68,0.00021017,2]
[372478153,1752659432282,-300.0,0.00021188,2]
[372478154,1752659432292,-300.0,0.00021189,2]
[372478155,1752659432302,-597.0,0.0002119,2]
[372478156,1752659432312,-755.24611739,0.00021191,5]
[372478157,1752659432328,-1078.41733876,0.00021191,5]
[372478158,1752659432340,-1166.33654385,0.00021191,5]
[372478159,1752659432350,-1597.95489,0.0002125,30]
[372478160,1752659432360,-94.75490311,0.00021358,2]
[372478161,1752659432474,-73.24509689,0.00021358,2]
[372478162,1752659432484,-168.0,0.00021531,2]
[372478163,1752659432494,-529.55117935,0.00021617,2]
[372478166,1752659437061,-286.5924011,0.00021617,2]
[372478167,1752659437073,-374.55641955,0.00021617,2]
[372478168,1752659437083,-22.76474161,0.00021709,2]
[372478169,1752659437166,-323.29525839,0.00021709,2]
[372478170,1752659437176,-621.626251,0.00021747,8]
[372478171,1752659437185,-3571.98,0.00021754,2]
[372478172,1752659437196,-600.0,0.00021756,2]
[372478173,1752659437206,-600.0,0.00021756,2]
[372478174,1752659437216,-274.23196183,0.00021756,2]
[372478175,1752659437227,-500.0,0.00021756,2]
[372478176,1752659437238,-500.0,0.00021756,2]
[372478177,1752659437248,-500.0,0.00021756,2]
[372478178,1752659437258,-163.674078,0.00021756,2]
[372478179,1752659437268,-500.0,0.00021756,2]
[372478180,1752659437277,-500.0,0.00021756,2]
[372478181,1752659437287,-500.0,0.00021756,2]
[372478182,1752659437297,-287.32178051,0.00021756,2]
[372478183,1752659437307,-250.0,0.00021794,2]
[372478184,1752659437318,-5000.0,0.00021817,2]
[372478185,1752659437327,-444.47998148,0.00021817,2]
[372478186,1752659437337,-164.55269384,0.00021817,2]
[372478187,1752659437348,-153.96755628,0.00021817,2]
[372478188,1752659437358,-1302.37366972,0.0002183,2]
[372478189,1752659437368,-164.55269383,0.00021837,2]
[372478190,1752659437380,-163.72,0.00021852,2]
[372478192,1752659437389,-2757.35339435,0.00021854,2]
[372478194,1752659437399,-4561.67215496,0.0002189,2]
[372478196,1752659437409,-1190.66,0.0002189,2]
[372478198,1752659437418,-2000.0,0.000219,2]
[372478200,1752659437428,-737.65487224,0.000219,2]
[372478238,1752659438112,-626.44514689,0.000219,2]
[372478239,1752659438126,-527.07998087,0.000219,2]
[372478240,1752659438136,-613.37957114,0.000219,2]
[372478241,1752659438158,-1767.94042886,0.000219,2]
[372478242,1752659438168,-150.0,0.0002191,2]
[372478243,1752659438178,-838.7287696,0.00021914,2]
[372478244,1752659438187,-160.0,0.00021915,2]
[372478245,1752659438197,-458.6951431,0.00021915,2]
[372478246,1752659438207,-2099.59307282,0.00021916,2]
[372478247,1752659438217,-500.0,0.00021916,2]
[372478248,1752659438226,-500.0,0.00021916,2]
[372478249,1752659438236,-500.0,0.00021916,2]
[372478250,1752659438246,-199.85478104,0.00021916,2]
[372478251,1752659438256,-152.70773968,0.00021916,2]
[372478252,1752659438266,-11824.43132137,0.00021916,2]
[372478253,1752659438276,-150.0,0.00021916,2]
[372478254,1752659438285,-320.06161689,0.00021917,2]
[372478255,1752659438295,-155.59552,0.00021917,2]
[372478256,1752659438306,-502.47966585,0.00021917,2]
[372478257,1752659438316,-460.0,0.00021917,2]
[372478258,1752659438326,-460.0,0.00021917,2]
[372478259,1752659438335,-460.0,0.00021917,2]
[372478261,1752659438345,-460.0,0.00021917,2]
[372478262,1752659438355,-460.0,0.00021917,2]
[372478263,1752659438364,-279.45276613,0.00021917,2]
[372478264,1752659438375,-460.0,0.00021917,2]
[372478265,1752659438385,-922.14,0.00021917,2]
[372478267,1752659438394,-556.98,0.00021917,2]
[372478269,1752659438404,-729.14,0.00021917,2]
[372478271,1752659438414,-460.0,0.00021917,2]
[372478273,1752659438423,-467.14804141,0.00021917,2]
[372478275,1752659438433,-460.0,0.00021917,2]
[372478277,1752659438442,-568.17,0.00021917,2]
[372478279,1752659438452,-460.0,0.00021917,2]
[372478280,1752659438461,-724.33,0.00021917,2]
[372478281,1752659438470,-491.62,0.00021917,2]
[372478282,1752659438479,-518.58,0.00021917,2]
[372478283,1752659438489,-558.55,0.00021917,2]
[372478284,1752659438498,-460.0,0.00021917,2]
[372478285,1752659438508,-460.0,0.00021917,2]
[372478286,1752659438517,-276.96989147,0.00021917,2]
[372478287,1752659438527,-837.1,0.00021917,2]
[372478288,1752659438536,-676.85,0.00021917,2]
[372478289,1752659438545,-1265.51,0.00021917,2]
[372478290,1752659438555,-541.6,0.00021917,5]
[372478291,1752659438564,-477.72,0.00021917,2]
[372478293,1752659438575,-498.67,0.00021917,2]
[372478295,1752659438584,-460.0,0.00021917,2]
[372478298,1752659438594,-789.74,0.00021917,2]
[372478300,1752659438604,-460.0,0.00021917,2]
[372478302,1752659438613,-460.0,0.00021917,2]
[372478304,1752659438622,-501.79,0.00021917,2]
[372478306,1752659438632,-504.25,0.00021917,2]
[372478308,1752659438641,-463.88389084,0.00021917,2]
[372478310,1752659438651,-743.22,0.00021917,2]
[372478312,1752659438661,-996.83,0.00021917,2]
[372478314,1752659438670,-460.0,0.00021917,2]
[372478316,1752659438680,-460.0,0.00021917,2]
[372478318,1752659438689,-465.79117401,0.00021917,2]
[372478320,1752659438699,-460.0,0.00021917,2]
[372478322,1752659438708,-460.0,0.00021917,2]
[372478324,1752659438718,-460.0,0.00021917,2]
[372478326,1752659438727,-460.0,0.00021917,2]
[372478328,1752659438736,-733.13,0.00021917,2]
[372478330,1752659438745,-460.0,0.00021917,2]
[372478332,1752659438755,-460.0,0.00021917,2]
[372478334,1752659438764,-460.0,0.00021917,2]
[372478336,1752659438774,-460.0,0.00021917,2]
[372478338,1752659438783,-542.66064913,0.00021917,2]
[372478340,1752659438793,-460.0,0.00021917,2]
[372478342,1752659438802,-959.43,0.00021917,2]
[372478344,1752659438811,-561.63,0.00021917,2]
[372478346,1752659438821,-460.0,0.00021917,2]
[372478348,1752659438830,-460.0,0.00021917,2]
[372478350,1752659438839,-460.0,0.00021917,2]
[372478352,1752659438849,-460.0,0.00021917,2]
[372478354,1752659438858,-1107.42,0.00021917,2]
[372478356,1752659438868,-460.0,0.00021917,2]
[372478358,1752659438878,-661.55,0.00021917,2]
[372478360,1752659438888,-510.64,0.00021917,2]
[372478362,1752659438898,-460.0,0.00021917,2]
[372478364,1752659438907,-465.52313508,0.00021917,2]
[372478366,1752659438917,-1023.85,0.00021917,2]
[372478368,1752659438926,-499.64,0.00021917,2]
[372478370,1752659438936,-515.5,0.00021917,2]
[372478372,1752659438945,-1496.45,0.00021917,2]
[372478374,1752659438955,-514.97047773,0.00021917,2]
[372478375,1752659438964,-460.0,0.00021917,2]
[372478376,1752659438973,-696.98,0.00021917,2]
[372478377,1752659438983,-460.0,0.00021917,2]
[372478378,1752659438993,-460.0,0.00021917,2]
[372478379,1752659439003,-460.0,0.00021917,2]
[372478380,1752659439013,-689.73,0.00021917,2]
[372478381,1752659439023,-460.0,0.00021917,2]
[372478382,1752659439033,-628.1,0.00021917,2]
[372478383,1752659439043,-504.11,0.00021917,2]
[372478384,1752659439053,-460.0,0.00021917,2]
[372478385,1752659439068,-469.71168081,0.00021917,2]
[372478386,1752659439078,-462.36796185,0.00021917,2]
[372478387,1752659439087,-1482.8,0.00021917,2]
[372478388,1752659439099,-460.0,0.00021917,2]